[Event "GER-ch Youth U12W 2020"]
[Site "Willingen"]
[Date "2020.10.28"]
[Round "2.5"]
[White "Khanbekyan, Nare"]
[Black "Wilmink, Anna"]
[Result "0-1"]
[ECO "B27"]
[WhiteElo "1329"]
[BlackElo "1608"]
[Annotator "NA RC"]
[PlyCount "140"]
[EventDate "2020.10.27"]
[EventType "swiss"]
[EventRounds "7"]
[EventCountry "GER"]
[SourceTitle "playchess.com"]
[Source "ChessBase"]
[SourceQuality "1"]
[TimeControl "40/5400+30:1800+30"]

1. e4 {[%emt 0:00:00]} c5 {[%emt 0:00:00]} 2. Nf3 {[%emt 0:00:00]} g6 {[%emt 0:00:00]} 3. d4 {[%emt 0:00:31]} cxd4 {[%emt 0:00:08]} 4. Nxd4 {[%emt 0:00:05]} Bg7 {[%emt 0:00:13]} 5. c4 {[%emt 0:00:48]} Nf6 {[%emt 0:00:27]} 6. Nc3 {[%emt 0:00:16]} Nc6 {[%emt 0:00:17]} 7. Be3 {[%emt 0:00:08]} O-O {[%emt 0:00:25]} 8. Be2 {[%emt 0:00:12]} b6 {[%emt 0:00:33]} 9. O-O {[%emt 0:00:17]} Bb7 {[%emt 0:00:09]} 10. f3 {[%emt 0:00:10]} d6 {[%emt 0:00:41]} 11. Qd2 {[%emt 0:00:45]} Nd7 {[%emt 0:01:27]} 12. Rac1 {[%emt 0:01:35]} Rc8 {[%emt 0:01:57]} 13. b3 {[%emt 0:00:32]} Nc5 {[%emt 0:01:13]} 14. Nd5 {[%emt 0:04:51]} Qd7 {[%emt 0:08:54]} 15. Rfd1 {[%emt 0:03:57]} Rfd8 {[%emt 0:02:10]} 16. Nb5 {[%emt 0:09:18]} Ba8 {[%emt 0:08:41]} 17. Bh6 {[%emt 0:15:13]} Ne5 {[%emt 0:10:23]} 18. Bxg7 {[%emt 0:04:53]} Kxg7 {[%emt 0:00:14]} 19. Qd4 {[%emt 0:00:35]} f6 {[%emt 0:06:36]} 20. f4 {[%emt 0:13:59]} Nf7 {[%emt 0:03:11]} 21. f5 {[%emt 0:11:04]} g5 {[%emt 0:02:29]} 22. b4 {[%emt 0:03:19]} Na6 {[%emt 0:12:23]} 23. Qe3 {[%emt 0:05:42]} Bxd5 {[%emt 0:01:15]} 24. Rxd5 {[%emt 0:03:56]} Nxb4 {[%emt 0:03:17]} 25. Rd2 {[%emt 0:01:24]} Nc6 {[%emt 0:04:13]} 26. Nd4 {[%emt 0:03:13]} Nxd4 {[%emt 0:01:07]} 27. Rxd4 {[%emt 0:00:05]} Ne5 {[%emt 0:02:02]} 28. a4 {[%emt 0:01:05]} Qxa4 {[%emt 0:02:22]} 29. c5 {[%emt 0:00:35]} Qc6 {[%emt 0:01:17]} 30. Ba6 {[%emt 0:02:59]} Rc7 {[%emt 0:00:41]} 31. Rd5 {[%emt 0:02:38]} bxc5 {[%emt 0:02:22]} 32. Be2 {[%emt 0:02:34]} Rb8 {[%emt 0:04:40]} 33. g3 {[%emt 0:02:25]} Rcb7 {[%emt 0:01:26]} 34. h4 {[%emt 0:01:28]} h6 {[%emt 0:00:47]} 35. Bd3 {[%emt 0:01:26]} Rb3 {[%emt 0:04:06]} 36. Qe2 {[%emt 0:01:36]} Qb6 {[%emt 0:00:53]} 37. Kg2 {[%emt 0:02:25]} Rb2 {[%emt 0:03:17]} 38. Rc2 {[%emt 0:00:26]} Nxd3 {[%emt 0:02:08]} 39. Rxd3 {[%emt 0:00:12]} Rxc2 {[%emt 0:00:14]} 40. Qxc2 {[%emt 0:00:09]} Qb2 {[%emt 0:00:21]} 41. Qxb2 {[%emt 0:30:58]} Rxb2+ {[%emt 0:30:07]} 42. Kf3 {[%emt 0:00:07]} c4 {[%emt 0:00:25]} 43. Rd1 {[%emt 0:00:45]} Kf7 {[%emt 0:03:08]} 44. Rc1 {[%emt 0:00:09]} Rb4 {[%emt 0:00:10]} 45. Ke3 {[%emt 0:00:27]} e5 {[%emt 0:00:29]} 46. fxe6+ {[%emt 0:00:21]} Kxe6 {[%emt 0:00:07]} 47. Kd4 {[%emt 0:00:04]} a5 {[%emt 0:00:31]} 48. Ra1 {[%emt 0:02:39]} c3+ {[%emt 0:02:33]} 49. Kxc3 Rxe4 {[%emt 0:00:14]} 50. hxg5 {[%emt 0:00:56]} hxg5 {[%emt 0:00:31]} 51. Kd3 {[%emt 0:01:28]} Rg4 {[%emt 0:01:01]} 52. Re1+ {[%emt 0:00:00]} Kd5 {[%emt 0:00:00]} 53. Rg1 {[%emt 0:00:00]} f5 {[%emt 0:00:00]} 54. Kc2 {[%emt 0:00:00]} f4 {[%emt 0:00:00]} 55. Rd1+ {[%emt 0:00:00]} Ke6 {[%emt 0:00:00]} 56. Re1+ {[%emt 0:00:00]} Kd7 {[%emt 0:00:00]} 57. Ra1 {[%emt 0:00:00]} Rxg3 {[%emt 0:00:00]} 58. Rxa5 {[%emt 0:00:00]} f3 {[%emt 0:00:00]} 59. Rf5 {[%emt 0:00:00]} g4 {[%emt 0:00:00]} 60. Kd3 {[%emt 0:00:00]} f2+ {[%emt 0:00:00]} 61. Ke2 {[%emt 0:00:00]} Rf3 {[%emt 0:00:00]} 62. Rxf3 {[%emt 0:00:00]} gxf3+ {[%emt 0:00:00]} 63. Kxf2 {[%emt 0:00:00]} Kc6 {[%emt 0:00:00]} 64. Kxf3 {[%emt 0:00:00]} Kc5 {[%emt 0:00:00]} 65. Ke2 {[%emt 0:00:00]} Kd4 {[%emt 0:00:00]} 66. Kd2 {[%emt 0:00:00]} d5 {[%emt 0:00:00]} 67. Kc1 {[%emt 0:00:00]} Kd3 {[%emt 0:00:00]} 68. Kd1 {[%emt 0:00:00]} d4 {[%emt 0:00:00]} 69. Kc1 {[%emt 0:00:00]} Ke2 {[%emt 0:00:00]} 70. Kc2 {[%emt 0:00:00]} d3+ {[%emt 0:00:00]} 0-1

[Event "GER-ch Youth U12W 2020"]
[Site "Willingen"]
[Date "2020.10.28"]
[Round "2.6"]
[White "Wartenberg, Alissa"]
[Black "Glotz, Diana"]
[Result "1-0"]
[ECO "C47"]
[WhiteElo "1463"]
[BlackElo "1098"]
[Annotator "NA RC"]
[PlyCount "119"]
[EventDate "2020.10.27"]
[EventType "swiss"]
[EventRounds "7"]
[EventCountry "GER"]
[SourceTitle "playchess.com"]
[Source "ChessBase"]
[SourceQuality "1"]
[TimeControl "40/5400+30:1800+30"]

1. e4 {[%emt 0:00:00]} e5 {[%emt 0:00:00]} 2. Nf3 {[%emt 0:00:00]} Nc6 {[%emt 0:00:00]} 3. Nc3 {[%emt 0:00:00]} Nf6 {[%emt 0:00:00]} 4. d4 {[%emt 0:00:00]} exd4 {[%emt 0:00:07]} 5. Nxd4 {[%emt 0:00:00]} Bb4 {[%emt 0:00:19]} 6. Nxc6 {[%emt 0:00:00]} bxc6 {[%emt 0:00:10]} 7. Bd3 {[%emt 0:00:03]} d5 {[%emt 0:00:26]} 8. exd5 {[%emt 0:00:07]} cxd5 {[%emt 0:00:09]} 9. O-O {[%emt 0:00:17]} O-O {[%emt 0:00:12]} 10. Bg5 {[%emt 0:00:08]} c6 {[%emt 0:00:21]} 11. Qf3 {[%emt 0:02:17]} Bd6 {[%emt 0:00:59]} 12. Rfe1 {[%emt 0:06:46]} Rb8 {[%emt 0:04:25]} 13. Rab1 {[%emt 0:03:26]} Bc7 {[%emt 0:06:03]} 14. h3 {[%emt 0:06:32]} Ba5 {[%emt 0:01:05]} 15. Red1 {[%emt 0:05:41]} Bc7 {[%emt 0:06:03]} 16. Ne2 {[%emt 0:03:50]} Be5 {[%emt 0:02:25]} 17. Bf4 {[%emt 0:14:13]} Bxf4 {[%emt 0:02:30]} 18. Nxf4 {[%emt 0:00:47]} Re8 {[%emt 0:00:44]} 19. Qg3 {[%emt 0:04:56]} Qd6 {[%emt 0:07:50]} 20. Nxd5 {[%emt 0:04:41]} Qxg3 {[%emt 0:01:02]} 21. Nxf6+ {[%emt 0:00:11]} gxf6 {[%emt 0:00:12]} 22. fxg3 {[%emt 0:00:04]} Be6 {[%emt 0:00:45]} 23. b3 {[%emt 0:01:41]} Rbd8 {[%emt 0:00:59]} 24. Rf1 {[%emt 0:00:55]} Kg7 {[%emt 0:00:44]} 25. Rf4 {[%emt 0:00:49]} Rd6 {[%emt 0:02:02]} 26. Rbf1 {[%emt 0:01:35]} Bd7 {[%emt 0:00:52]} 27. Ra4 {[%emt 0:00:59]} Ra8 {[%emt 0:02:11]} 28. Re4 {[%emt 0:01:31]} Re8 {[%emt 0:01:27]} 29. Ra4 {[%emt 0:01:35]} Ra8 {[%emt 0:00:31]} 30. Rff4 {[%emt 0:01:21]} a5 {[%emt 0:02:11]} 31. b4 {[%emt 0:04:56]} c5 {[%emt 0:03:06]} 32. Rxa5 {[%emt 0:00:41]} Rxa5 {[%emt 0:00:08]} 33. bxa5 {[%emt 0:00:06]} Bc8 {[%emt 0:00:10]} 34. Ra4 {[%emt 0:01:22]} Ba6 {[%emt 0:01:05]} 35. Bxa6 {[%emt 0:00:16]} Rxa6 {[%emt 0:00:05]} 36. Kf2 {[%emt 0:00:23]} Kg6 {[%emt 0:00:25]} 37. Ke3 {[%emt 0:00:17]} Kf5 {[%emt 0:00:21]} 38. Kd3 {[%emt 0:00:41]} Rd6+ {[%emt 0:02:22]} 39. Kc3 {[%emt 0:00:49]} Rd8 {[%emt 0:00:52]} 40. a6 {[%emt 0:00:50]} Ke6 {[%emt 0:00:26]} 41. a7 {[%emt 0:30:18]} Ra8 {[%emt 0:30:09]} 42. Kc4 {[%emt 0:00:30]} Kd6 {[%emt 0:00:17]} 43. Ra6+ {[%emt 0:00:12]} Kc7 {[%emt 0:00:11]} 44. Kxc5 {[%emt 0:00:04]} Kb7 {[%emt 0:00:15]} 45. Rxf6 {[%emt 0:00:14]} Rf8 {[%emt 0:00:25]} 46. Kb4 {[%emt 0:02:19]} Kxa7 {[%emt 0:00:32]} 47. Rh6 {[%emt 0:00:38]} Rh8 {[%emt 0:00:27]} 48. Rd6 {[%emt 0:00:20]} Kb8 {[%emt 0:00:33]} 49. Rd7 {[%emt 0:00:13]} Rf8 {[%emt 0:00:11]} 50. a4 {[%emt 0:00:33]} Ka8 {[%emt 0:00:31]} 51. Ka3 {[%emt 0:00:43]} Kb8 {[%emt 0:00:21]} 52. c4 {[%emt 0:00:23]} Kc8 {[%emt 0:00:05]} 53. Re7 {[%emt 0:00:04]} Kd8 {[%emt 0:00:08]} 54. Ra7 {[%emt 0:00:05]} Re8 {[%emt 0:00:36]} 55. Ra8+ {[%emt 0:00:06]} Kd7 {[%emt 0:00:05]} 56. Rxe8 {[%emt 0:00:03]} Kxe8 {[%emt 0:00:04]} 57. a5 {[%emt 0:00:13]} Kd8 {[%emt 0:00:02]} 58. c5 {[%emt 0:00:05]} Kc7 {[%emt 0:00:06]} 59. Kb4 {[%emt 0:00:08]} Kb7 {[%emt 0:00:11]} 60. Kb5 {[%emt 0:00:14]} 1-0

[Event "GER-ch Youth U12W 2020"]
[Site "Willingen"]
[Date "2020.10.28"]
[Round "2.7"]
[White "Jacobasch, Ronja"]
[Black "Moldovan, Stela"]
[Result "1-0"]
[ECO "A04"]
[WhiteElo "1549"]
[BlackElo "1219"]
[Annotator "NA RC"]
[PlyCount "117"]
[EventDate "2020.10.27"]
[EventType "swiss"]
[EventRounds "7"]
[EventCountry "GER"]
[SourceTitle "playchess.com"]
[Source "ChessBase"]
[SourceQuality "1"]
[TimeControl "40/5400+30:1800+30"]

1. Nf3 {[%emt 0:00:00]} a6 {[%emt 0:00:00]} 2. g3 {[%emt 0:00:00]} d5 {[%emt 0:00:00]} 3. Bg2 {[%emt 0:00:00]} Nf6 {[%emt 0:00:00]} 4. O-O {[%emt 0:00:04]} e6 {[%emt 0:00:01]} 5. d3 {[%emt 0:00:26]} h6 {[%emt 0:00:07]} 6. Nbd2 {[%emt 0:00:18]} Nc6 {[%emt 0:00:33]} 7. e4 {[%emt 0:00:26]} Bb4 {[%emt 0:02:31]} 8. e5 {[%emt 0:09:41]} Nd7 {[%emt 0:00:36]} 9. c3 {[%emt 0:00:29]} Ba5 {[%emt 0:00:29]} 10. d4 {[%emt 0:00:42]} Nb6 {[%emt 0:00:32]} 11. Re1 {[%emt 0:01:11]} Nc4 {[%emt 0:00:49]} 12. Nxc4 {[%emt 0:02:36]} dxc4 {[%emt 0:01:55]} 13. Nd2 {[%emt 0:07:07]} Bb6 {[%emt 0:05:15]} 14. Nxc4 {[%emt 0:01:12]} Ba7 {[%emt 0:00:41]} 15. Ne3 {[%emt 0:05:35]} Ne7 {[%emt 0:02:08]} 16. Qg4 {[%emt 0:11:14]} Ng6 {[%emt 0:01:16]} 17. Be4 {[%emt 0:02:33]} Qg5 {[%emt 0:03:02]} 18. Qf3 {[%emt 0:12:28]} Rb8 {[%emt 0:02:16]} 19. Nc4 {[%emt 0:03:46]} Qe7 {[%emt 0:02:16]} 20. Na5 {[%emt 0:05:48]} c5 {[%emt 0:00:57]} 21. Be3 {[%emt 0:04:36]} Qc7 {[%emt 0:05:17]} 22. Nc4 {[%emt 0:01:59]} O-O {[%emt 0:03:39]} 23. Rac1 {[%emt 0:01:04]} Bd7 24. Nd6 Bc6 {[%emt 0:03:48]} 25. Qg4 {[%emt 0:01:21]} Bxe4 {[%emt 0:00:40]} 26. Nxe4 {[%emt 0:00:22]} cxd4 {[%emt 0:00:42]} 27. cxd4 {[%emt 0:00:39]} Qd8 {[%emt 0:00:35]} 28. Red1 {[%emt 0:00:50]} Rc8 {[%emt 0:00:28]} 29. Rxc8 {[%emt 0:00:59]} Qxc8 {[%emt 0:00:19]} 30. h4 {[%emt 0:00:42]} Kh8 {[%emt 0:01:07]} 31. Qh5 {[%emt 0:02:35]} Kh7 {[%emt 0:01:22]} 32. Ng5+ {[%emt 0:01:40]} Kg8 {[%emt 0:00:27]} 33. Ne4 {[%emt 0:01:18]} Qd8 {[%emt 0:00:53]} 34. Bxh6 {[%emt 0:02:51]} Qe7 {[%emt 0:00:47]} 35. Bg5 {[%emt 0:00:58]} f6 {[%emt 0:00:29]} 36. exf6 {[%emt 0:00:46]} Qf7 {[%emt 0:00:39]} 37. fxg7 {[%emt 0:04:05]} Qxg7 {[%emt 0:00:16]} 38. Bh6 {[%emt 0:01:31]} Qh7 {[%emt 0:00:12]} 39. Qg5 {[%emt 0:00:36]} Rf5 {[%emt 0:00:16]} 40. Qd8+ {[%emt 0:01:01]} Nf8 {[%emt 0:02:53]} 41. Nf6+ {[%emt 0:30:53]} Rxf6 {[%emt 0:30:13]} 42. Qxf6 {[%emt 0:00:13]} Qf7 {[%emt 0:00:49]} 43. Qxf7+ {[%emt 0:01:11]} Kxf7 {[%emt 0:00:09]} 44. d5 {[%emt 0:01:00]} exd5 {[%emt 0:00:07]} 45. Rxd5 {[%emt 0:00:19]} Ke8 {[%emt 0:00:36]} 46. Re5+ {[%emt 0:00:36]} Kf7 {[%emt 0:00:13]} 47. Re4 {[%emt 0:00:58]} Ng6 {[%emt 0:00:13]} 48. h5 {[%emt 0:00:55]} Nh8 {[%emt 0:00:19]} 49. Rf4+ {[%emt 0:00:40]} Kg8 {[%emt 0:00:13]} 50. Rf5 {[%emt 0:01:17]} Nf7 {[%emt 0:00:17]} 51. Bf4 {[%emt 0:01:05]} b5 {[%emt 0:00:14]} 52. g4 {[%emt 0:00:46]} a5 53. g5 {[%emt 0:00:59]} b4 {[%emt 0:00:21]} 54. g6 {[%emt 0:00:28]} b3 {[%emt 0:01:03]} 55. gxf7+ Kh7 56. axb3 {[%emt 0:01:34]} a4 {[%emt 0:00:39]} 57. f8=Q Bxf2+ 58. Kxf2 {[%emt 0:02:18]} axb3 {[%emt 0:00:37]} 59. Rf7# 1-0

[Event "GER-ch Youth U12W 2020"]
[Site "Willingen"]
[Date "2020.10.28"]
[Round "2.8"]
[White "Rosin, Ida"]
[Black "Haug, Mara"]
[Result "0-1"]
[ECO "C45"]
[WhiteElo "1387"]
[BlackElo "1366"]
[Annotator "NA RC"]
[PlyCount "50"]
[EventDate "2020.10.27"]
[EventType "swiss"]
[EventRounds "7"]
[EventCountry "GER"]
[SourceTitle "playchess.com"]
[Source "ChessBase"]
[SourceQuality "1"]
[TimeControl "40/5400+30:1800+30"]

1. e4 {[%emt 0:00:00]} e5 {[%emt 0:00:00]} 2. Nf3 {[%emt 0:00:00]} Nc6 {[%emt 0:00:00]} 3. d4 {[%emt 0:00:00]} exd4 {[%emt 0:00:00]} 4. Nxd4 {[%emt 0:00:02]} Bc5 {[%emt 0:00:01]} 5. Be3 {[%emt 0:00:15]} Qf6 {[%emt 0:00:08]} 6. Nxc6 {[%emt 0:00:31]} Bxe3 {[%emt 0:03:28]} 7. fxe3 {[%emt 0:00:44]} dxc6 {[%emt 0:00:57]} 8. Nc3 {[%emt 0:01:36]} Bd7 {[%emt 0:01:50]} 9. Bd3 {[%emt 0:02:13]} Qh4+ {[%emt 0:03:05]} 10. g3 {[%emt 0:00:41]} Qg5 {[%emt 0:02:22]} 11. Qd2 {[%emt 0:01:17]} O-O-O {[%emt 0:03:38]} 12. O-O-O {[%emt 0:00:31]} Nf6 {[%emt 0:03:24]} 13. Rhg1 {[%emt 0:05:07]} c5 {[%emt 0:07:27]} 14. h4 {[%emt 0:01:33]} Qe5 {[%emt 0:04:33]} 15. Qe1 {[%emt 0:02:17]} Bc6 {[%emt 0:02:12]} 16. Rf1 {[%emt 0:06:30]} Rhf8 {[%emt 0:03:08]} 17. Rf5 {[%emt 0:00:58]} Qe7 {[%emt 0:02:05]} 18. e5 {[%emt 0:01:21]} Nd7 {[%emt 0:04:49]} 19. Rh5 {[%emt 0:08:12]} h6 {[%emt 0:02:25]} 20. Bf5 {[%emt 0:00:59]} Kb8 {[%emt 0:03:43]} 21. Bxd7 {[%emt 0:01:29]} Bxd7 {[%emt 0:03:24]} 22. Nd5 {[%emt 0:01:58]} Qe6 {[%emt 0:03:04]} 23. Qa5 {[%emt 0:00:23]} Qc6 {[%emt 0:05:54]} 24. Qc3 {[%emt 0:03:55]} Bg4 {[%emt 0:02:25]} 25. Ne7 {[%emt 0:00:33]} Rxd1# {[%emt 0:00:09]} 0-1

[Event "GER-ch Youth U12W 2020"]
[Site "Willingen"]
[Date "2020.10.28"]
[Round "2.9"]
[White "Modali, Nikhilamrutha"]
[Black "Arnold, Rubina"]
[Result "0-1"]
[ECO "B01"]
[WhiteElo "1193"]
[BlackElo "1414"]
[Annotator "NA RC"]
[PlyCount "68"]
[EventDate "2020.10.27"]
[EventType "swiss"]
[EventRounds "7"]
[EventCountry "GER"]
[SourceTitle "playchess.com"]
[Source "ChessBase"]
[SourceQuality "1"]
[TimeControl "40/5400+30:1800+30"]

1. e4 {[%emt 0:00:00]} d5 {[%emt 0:00:00]} 2. exd5 {[%emt 0:00:00]} Nf6 {[%emt 0:00:00]} 3. Bb5+ {[%emt 0:00:00]} Bd7 {[%emt 0:00:01]} 4. Be2 {[%emt 0:00:28]} Nxd5 {[%emt 0:00:20]} 5. d4 {[%emt 0:00:30]} g6 {[%emt 0:00:40]} 6. c4 {[%emt 0:01:38]} Nb6 {[%emt 0:00:14]} 7. Nc3 {[%emt 0:01:12]} Bg7 {[%emt 0:01:29]} 8. Nf3 {[%emt 0:01:35]} Nc6 {[%emt 0:01:34]} 9. Be3 {[%emt 0:04:01]} Bf5 {[%emt 0:06:04]} 10. a3 {[%emt 0:06:15]} a5 {[%emt 0:02:06]} 11. d5 {[%emt 0:10:15]} Ne5 {[%emt 0:07:54]} 12. Nxe5 {[%emt 0:06:20]} Bxe5 {[%emt 0:00:08]} 13. Bd4 {[%emt 0:00:48]} Bxd4 {[%emt 0:04:15]} 14. Qxd4 {[%emt 0:01:26]} O-O {[%emt 0:01:19]} 15. O-O {[%emt 0:05:18]} c6 {[%emt 0:10:17]} 16. Bf3 {[%emt 0:16:33]} Rc8 {[%emt 0:07:12]} 17. Rad1 {[%emt 0:11:16]} c5 {[%emt 0:01:06]} 18. Qf4 {[%emt 0:10:15]} Qd6 {[%emt 0:03:44]} 19. Qc1 {[%emt 0:03:48]} Qf6 {[%emt 0:07:04]} 20. Rfe1 {[%emt 0:02:55]} Nxc4 {[%emt 0:02:59]} 21. g4 {[%emt 0:02:41]} Bd7 {[%emt 0:01:12]} 22. Ne4 {[%emt 0:00:25]} Qxf3 {[%emt 0:00:19]} 23. Qxc4 {[%emt 0:01:33]} Qxg4+ {[%emt 0:00:16]} 24. Kf1 {[%emt 0:00:42]} Qh3+ {[%emt 0:04:13]} 25. Kg1 {[%emt 0:00:44]} Qg4+ {[%emt 0:01:35]} 26. Kf1 {[%emt 0:00:17]} Qf3 {[%emt 0:00:12]} 27. Ng5 {[%emt 0:02:34]} Qh1+ {[%emt 0:00:50]} 28. Ke2 {[%emt 0:00:16]} Qxh2 {[%emt 0:00:21]} 29. Nxh7 {[%emt 0:03:34]} Qxh7 {[%emt 0:00:19]} 30. Rh1 {[%emt 0:00:05]} Qg7 {[%emt 0:00:18]} 31. Qh4 {[%emt 0:00:13]} Bb5+ {[%emt 0:01:32]} 32. Ke3 {[%emt 0:01:15]} Qe5+ {[%emt 0:00:15]} 33. Kf3 {[%emt 0:00:43]} Qf6+ {[%emt 0:00:15]} 34. Kg2 {[%emt 0:01:17]} Qxh4 {[%emt 0:00:11]} 0-1

[Event "GER-ch Youth U12W 2020"]
[Site "Willingen"]
[Date "2020.10.28"]
[Round "2.10"]
[White "Schwenke, Mia"]
[Black "Heuberger, Sandra"]
[Result "1/2-1/2"]
[ECO "C55"]
[WhiteElo "1265"]
[BlackElo "1004"]
[Annotator "NA RC"]
[PlyCount "77"]
[EventDate "2020.10.27"]
[EventType "swiss"]
[EventRounds "7"]
[EventCountry "GER"]
[SourceTitle "playchess.com"]
[Source "ChessBase"]
[SourceQuality "1"]
[TimeControl "40/5400+30:1800+30"]

1. e4 {[%emt 0:00:00]} e5 {[%emt 0:00:00]} 2. Nf3 {[%emt 0:00:00]} Nc6 {[%emt 0:00:00]} 3. Bc4 {[%emt 0:00:00]} Nf6 {[%emt 0:00:03]} 4. d3 {[%emt 0:00:01]} Be7 {[%emt 0:02:53]} 5. O-O {[%emt 0:00:16]} O-O {[%emt 0:00:21]} 6. Re1 {[%emt 0:00:27]} d5 {[%emt 0:06:23]} 7. exd5 {[%emt 0:00:57]} Nxd5 {[%emt 0:01:38]} 8. Nxe5 {[%emt 0:01:39]} Nxe5 {[%emt 0:07:36]} 9. Rxe5 {[%emt 0:00:56]} c6 {[%emt 0:02:08]} 10. Nd2 {[%emt 0:05:53]} b5 {[%emt 0:03:48]} 11. Bxd5 {[%emt 0:10:27]} cxd5 {[%emt 0:00:26]} 12. Nf3 {[%emt 0:03:51]} Bb7 {[%emt 0:02:12]} 13. d4 {[%emt 0:03:25]} Re8 {[%emt 0:02:05]} 14. Bf4 {[%emt 0:03:34]} Qd7 {[%emt 0:04:37]} 15. h3 {[%emt 0:07:29]} Bd6 {[%emt 0:02:46]} 16. Rxe8+ {[%emt 0:00:30]} Rxe8 {[%emt 0:00:11]} 17. Bxd6 {[%emt 0:00:21]} Qxd6 {[%emt 0:00:09]} 18. Qd2 {[%emt 0:00:53]} h6 {[%emt 0:00:27]} 19. Re1 {[%emt 0:00:43]} Bc6 {[%emt 0:04:02]} 20. Rxe8+ {[%emt 0:03:19]} Bxe8 {[%emt 0:00:11]} 21. Qe3 {[%emt 0:03:13]} Qd8 {[%emt 0:01:57]} 22. Qa3 {[%emt 0:05:17]} Qc7 {[%emt 0:00:53]} 23. Qb3 {[%emt 0:03:08]} Qd6 {[%emt 0:01:25]} 24. Qe3 {[%emt 0:06:23]} Bd7 {[%emt 0:01:00]} 25. a3 {[%emt 0:21:17]} a6 {[%emt 0:04:18]} 26. Qe5 {[%emt 0:01:15]} Qxe5 {[%emt 0:00:54]} 27. Nxe5 {[%emt 0:00:04]} Bf5 {[%emt 0:00:31]} 28. c3 {[%emt 0:00:29]} f6 {[%emt 0:00:20]} 29. Nf3 {[%emt 0:01:51]} Kf7 {[%emt 0:00:28]} 30. Kf1 {[%emt 0:01:00]} Ke7 {[%emt 0:00:23]} 31. Ke2 {[%emt 0:00:40]} Kd6 {[%emt 0:01:43]} 32. Nh4 {[%emt 0:03:33]} Bh7 {[%emt 0:01:36]} 33. Nf3 {[%emt 0:03:49]} Bg6 {[%emt 0:00:33]} 34. Nd2 {[%emt 0:02:09]} Bc2 {[%emt 0:01:18]} 35. Nf1 {[%emt 0:03:07]} Be4 {[%emt 0:00:27]} 36. f3 {[%emt 0:01:05]} Bh7 {[%emt 0:00:16]} 37. Ke3 {[%emt 0:00:59]} Ke6 {[%emt 0:00:43]} 38. Ng3 {[%emt 0:01:50]} g5 {[%emt 0:02:20]} 39. Ne2 {[%emt 0:01:44]} 1/2-1/2

[Event "GER-ch Youth U12W 2020"]
[Site "Willingen"]
[Date "2020.10.28"]
[Round "2.11"]
[White "Lorenz, Veronika"]
[Black "Steinlechner, Katja"]
[Result "1-0"]
[ECO "B14"]
[WhiteElo "1273"]
[BlackElo "1366"]
[Annotator "NA RC"]
[PlyCount "55"]
[EventDate "2020.10.27"]
[EventType "swiss"]
[EventRounds "7"]
[EventCountry "GER"]
[SourceTitle "playchess.com"]
[Source "ChessBase"]
[SourceQuality "1"]
[TimeControl "40/5400+30:1800+30"]

1. e4 {[%emt 0:00:00]} c6 {[%emt 0:00:00]} 2. d4 {[%emt 0:00:00]} d5 {[%emt 0:00:00]} 3. exd5 {[%emt 0:00:00]} cxd5 {[%emt 0:00:01]} 4. c4 {[%emt 0:00:02]} e6 {[%emt 0:00:19]} 5. Nc3 {[%emt 0:01:27]} Nf6 {[%emt 0:00:31]} 6. Nf3 {[%emt 0:00:12]} Nc6 {[%emt 0:00:36]} 7. cxd5 {[%emt 0:03:15]} Nxd5 {[%emt 0:04:21]} 8. Bd3 {[%emt 0:00:19]} Bb4 {[%emt 0:02:07]} 9. Bd2 {[%emt 0:03:15]} Bxc3 {[%emt 0:04:24]} 10. bxc3 {[%emt 0:01:10]} O-O {[%emt 0:03:16]} 11. O-O {[%emt 0:00:24]} Qc7 {[%emt 0:01:48]} 12. Bb1 {[%emt 0:04:37]} Nb6 {[%emt 0:04:01]} 13. Qc2 {[%emt 0:18:13]} g6 {[%emt 0:02:52]} 14. Bh6 {[%emt 0:01:20]} Rd8 {[%emt 0:03:03]} 15. h4 {[%emt 0:06:57]} Ne7 {[%emt 0:06:50]} 16. Bg5 {[%emt 0:11:31]} Kg7 {[%emt 0:08:47]} 17. Qc1 {[%emt 0:05:42]} Kf8 {[%emt 0:10:10]} 18. Bf6 {[%emt 0:05:35]} Nbd5 {[%emt 0:02:34]} 19. Qh6+ {[%emt 0:00:57]} Ke8 {[%emt 0:00:14]} 20. Be5 {[%emt 0:00:51]} Qxc3 {[%emt 0:01:44]} 21. Be4 {[%emt 0:06:38]} b5 {[%emt 0:05:33]} 22. Qxh7 {[%emt 0:02:09]} a5 {[%emt 0:04:56]} 23. Rac1 {[%emt 0:02:47]} Qa3 {[%emt 0:02:09]} 24. Ng5 {[%emt 0:08:39]} Qxa2 {[%emt 0:06:13]} 25. Qxf7+ {[%emt 0:00:15]} Kd7 {[%emt 0:00:11]} 26. Qxe6+ {[%emt 0:00:10]} Ke8 {[%emt 0:00:28]} 27. Bxg6+ {[%emt 0:00:07]} Kf8 {[%emt 0:00:23]} 28. Qf7# 1-0

[Event "GER-ch Youth U12W 2020"]
[Site "Willingen"]
[Date "2020.10.28"]
[Round "2.12"]
[White "Fischer, Juliane"]
[Black "Margaryan, Venera"]
[Result "1-0"]
[ECO "C00"]
[WhiteElo "1509"]
[BlackElo "1457"]
[Annotator "NA RC"]
[PlyCount "57"]
[EventDate "2020.10.27"]
[EventType "swiss"]
[EventRounds "7"]
[EventCountry "GER"]
[SourceTitle "playchess.com"]
[Source "ChessBase"]
[SourceQuality "1"]
[TimeControl "40/5400+30:1800+30"]

1. e4 {[%emt 0:00:00]} e6 {[%emt 0:00:00]} 2. d4 {[%emt 0:00:00]} d5 {[%emt 0:00:00]} 3. Bd3 {[%emt 0:00:00]} c5 {[%emt 0:00:24]} 4. exd5 {[%emt 0:00:12]} exd5 {[%emt 0:01:02]} 5. Nf3 {[%emt 0:00:35]} c4 {[%emt 0:00:46]} 6. Be2 {[%emt 0:00:12]} Nf6 {[%emt 0:00:43]} 7. b3 {[%emt 0:01:01]} b5 {[%emt 0:01:29]} 8. a4 {[%emt 0:00:38]} Qa5+ {[%emt 0:10:32]} 9. Bd2 {[%emt 0:05:36]} Bb4 {[%emt 0:04:05]} 10. Bxb4 {[%emt 0:05:12]} Qxb4+ {[%emt 0:00:11]} 11. Qd2 {[%emt 0:00:27]} Qxd2+ {[%emt 0:00:38]} 12. Nbxd2 {[%emt 0:00:28]} Nc6 {[%emt 0:19:29]} 13. O-O {[%emt 0:09:36]} Nb4 {[%emt 0:10:24]} 14. c3 {[%emt 0:05:40]} Nd3 {[%emt 0:14:41]} 15. Bxd3 {[%emt 0:01:02]} cxd3 {[%emt 0:00:20]} 16. Rfe1+ {[%emt 0:00:36]} Kf8 {[%emt 0:01:26]} 17. Re3 {[%emt 0:01:48]} Ba6 {[%emt 0:02:39]} 18. axb5 {[%emt 0:01:20]} Bxb5 {[%emt 0:01:23]} 19. c4 {[%emt 0:00:22]} Ba6 {[%emt 0:02:39]} 20. Rxa6 {[%emt 0:00:19]} dxc4 {[%emt 0:01:16]} 21. bxc4 {[%emt 0:00:14]} Ng4 {[%emt 0:00:58]} 22. Rxd3 {[%emt 0:00:23]} g6 {[%emt 0:00:43]} 23. Rda3 {[%emt 0:00:35]} Re8 {[%emt 0:01:20]} 24. Rxa7 {[%emt 0:01:32]} Re2 {[%emt 0:00:14]} 25. h3 {[%emt 0:02:38]} Nf6 {[%emt 0:01:15]} 26. Ra8+ {[%emt 0:01:30]} Ne8 {[%emt 0:00:20]} 27. d5 {[%emt 0:00:22]} Kg7 {[%emt 0:00:17]} 28. Re3 {[%emt 0:00:37]} Rxe3 {[%emt 0:01:36]} 29. fxe3 {[%emt 0:00:14]} 1-0